Workbook

Sheet Партнерские материалы
B1: В этом файле собрана информация о стоимости и показателях рекламных инструментов на сайте Т—Ж https://t-j.ru Цены приведены отдельно по каждому формату. Для уточнения финальной стоимости проекта и подготовки медиаплана необходимо заполнить бриф. Цены действуют с 01.03.2025 и указаны без НДС. | E1: Бриф по ссылке
A3: Прайс-лист на размещение рекламы в Т—Ж
A4: Партнерские материалы
A5: Партнер может выбрать один или несколько форматов, при покупке пакета от 3х материалов действуют специальные условия. В стоимость входит подготовка материала, брендирование, размещение и редакционное анонсирование.
A6: Формат | B6: Описание | C6: Прогноз охватов | D6: Цена, руб. | E6: Прогнозный CPU, руб. | F6: Сроки подготовки (со дня заключения договора), раб. дней
A7: Экспертная статья | B7: Статья с экспертом по теме. Рекламный блок и CTA в начале и в конце статьи | C7: 15000 | D7: 700000 | E7: =D7/C7 -> 46.66666667 | F7: от 20
A8: Личный опыт | B8: Опыт и история клиента. Рекламный блок и CTA в конце статьи | C8: 15000 | D8: 700000 | E8: 46.66666667 | F8: от 20
A9: Список | B9: Нативное описание преимуществ продукта в виде структурированных пунктов. CTA в конце материала | C9: 15000 | D9: 700000 | E9: 46.66666667 | F9: от 20
A10: Шорт | B10: Короткие, информативные карточки. CTA на одной из карточек | C10: 15000 | D10: 700000 | E10: 46.66666667 | F10: от 20
A12: Интерактивные спецпроекты
A13: Партнер может выбрать один или несколько форматов, при покупке пакета от 3х материалов действуют специальные условия. В стоимость входит подготовка материала, брендирование, размещение и редакционное анонсирование.
A14: Формат | B14: Описание | C14: Прогноз охватов | D14: Цена, руб. | E14: Прогнозный CPU, руб. | F14: Сроки подготовки (со дня заключения договора), раб. дней
A15: Тест | B15: Опрос с вариантами ответов. Рекламный блок и CTA в тесте или результатах | C15: 15000 | D15: 800000 | E15: =D15/C15 -> 53.33333333 | F15: от 30
A16: Калькулятор | B16: Интерактивный формат для расчета выгоды продукта в цифрах с рекламным блоком и CTA | C16: 15000 | D16: 1000000 | E16: 66.66666667 | F16: от 40
A17: Фичер | B17: Интерактивный формат под цели партнера, часто с игровой механикой | C17: 15000 | D17: 1000000 | E17: 66.66666667 | F17: от 40
A18: Спецпроект с T-Data | B18: Формат, разработанный совместно с T-Data. На снове обезличенной банковской информации готовится исследование с инфографикой | C18: 15000 | D18: от 1 000 000 | E18: =1000000/15000 -> 66.66666667 | F18: от 40
A19: Образовательный курс | B19: Формат помогает погрузить пользователя в тему и дать новые знания или навыки. Состоит из 3-10 уроков с заданиями, тестами и чек-листами | C19: 15000 | D19: от 1 000 000 | E19: =1000000/15000 -> 66.66666667 | F19: от 80
A20: Эксклюзивный спецпроект | B20: Формат, разработанный специально под цели партнера или возможностью совместить в себе несколько форматов | C20: Индивидуальное предложение по запросу от 2 000 000 руб.
A22: Соцсети
A23: Размещение на лояльную аудиторию в соцсетях возможно только при условии покупки партнерского материала/спецпроекта. В посте упоминается рекламодатель и дается ссылка на спецпроект.
A24: Соцсеть | B24: Описание | C24: Прогноз охватов | D24: Цена, руб. | E24: Прогнозный CPV, руб. | F24: Сроки подготовки (со дня заключения договора), раб. дней
A25: Telegram | B25: Пост в основном канале https://t.me/t_jrnl и тематическом канале со ссылкой на спецпроект и упоминанием партнера в тексте поста | C25: 25000 | D25: 100000 | E25: 4 | F25: от 5
A26: ВК | B26: Пост в сообществе https://vk.com/t_jrnl со ссылкой на спецпроект и упоминанием партнера в тексте поста | C26: 15000 | D26: 50000 | E26: 3.333333333 | F26: от 5
A27: Одноклассники | B27: Пост в группе https://ok.ru/tjrnl со ссылкой на спецпроект и упоминанием партнера в тексте поста | C27: 20000 | D27: 50000 | E27: 2.5 | F27: от 5
A29: Рассылки
A30: Размещение на лояльную аудиторию в рассылках возможно только при условии покупки партнерского материала/спецпроекта. В письме упоминается рекламодатель и дается ссылка на спецпроект.
A31: Опция | B31: Пример рассылки | C31: Прогноз охватов | D31: Цена, руб. | E31: Прогнозный CPV, руб. | F31: Сроки подготовки (со дня заключения договора), раб. дней
A32: Промо блок в главной email-рассылке | B32: https://static2.tinkoffjournal.ru/subscription-list/latest/main.html | C32: 20000 | D32: 100000 | E32: 5 | F32: от 7
A33: Промо блок в тематической email-рассылке | B33: https://journal.tinkoff.ru/one-page-to-rule-them-all/ | C33: 5000 | D33: 30000 | E33: 6 | F33: от 7

Sheet Баннерная реклама
B1: В этом файле собрана информация о стоимости и показателях рекламных инструментов на сайте Т—Ж https://t-j.ru Цены приведены отдельно по каждому формату. Для уточнения финальной стоимости проекта и подготовки медиаплана необходимо заполнить бриф. Цены действуют с 01.03.2025 и указаны без НДС. | E1: Бриф по ссылке
A3: Прайс-лист на размещение рекламы в Т—Ж
A4: Баннерная реклама
A5: В блоке перечислен минимальный охват по каждому инструменту, при желании объем показов может быть увеличен под цели заказчика.
A6: Формат | B6: Описание | C6: Размер | D6: Устройство | E6: Прогноз охватов | F6: Прогноз показов | G6: Прогнозный CTR | H6: Прогноз кликов | I6: Единица закупки | J6: CPM, руб. | K6: CPM, руб. промо партнерских материалов | L6: Сроки подготовки (со дня заключения договора), раб. дней
A7: Баннер в шапке | B7: Баннер размещается: - в верхней части страницы, над хедером | C7: 760px x 105px | D7: Desktop | E7: 100000 | F7: =E7*1.2 -> 120000 | G7: 0.005 | H7: =F7*G7 -> 600 | I7: 1000 показов | J7: 300 | K7: 130 | L7: от 14
C8: 100% x 120px | D8: Mobile | E8: 400000 | F8: 480000 | H8: =F8*G7 -> 2400
A9: Mini баннер | B9: Баннер размещается: - после автора в начале материала | C9: 760px х 180px | D9: Desktop | E9: 100000 | F9: 120000 | G9: 0.005 | H9: =F9*G9 -> 600
C10: 335px х 185px | D10: Mobile | E10: 400000 | F10: 480000 | H10: =F10*G9 -> 2400
A11: Medium баннер | B11: Баннер размещается: - внутри текста материала - в конце материала - в конце страницы последним блоком | C11: 760px х 220px | D11: Desktop | E11: 100000 | F11: =E11*1.2 -> 120000 | G11: 0.0055 | H11: =F11*G11 -> 660
C12: 335px x 390px | D12: Mobile | E12: 400000 | F12: =E12*1.2 -> 480000 | H12: =F12*G11 -> 2640
A13: Large баннер | B13: Баннер размещается: - внутри текста материала - после блока комментариев | C13: 760px x 235px | D13: Desktop | E13: 100000 | F13: 120000 | G13: 0.006 | H13: =F13*G13 -> 720
C14: 375px x 520px | D14: Mobile | E14: 400000 | F14: 480000 | H14: =F14*G13 -> 2880
A15: Поп-ап маленький (поплавок) | B15: Баннер появляется в соответсвии с настройками, может быть показан в зависимости от времени на статье, гео, интересов читателей. Не перекрывает экран | C15: 195px x 330px | D15: Desktop | E15: 100000 | F15: 120000 | G15: 0.01 | H15: =F15*G15 -> 1200 | J15: 500
C16: 350px x 165px | D16: Mobile | E16: 400000 | F16: 480000 | H16: =F16*G15 -> 4800
A17: Поп-ап большой (статичный) | B17: Баннер появляется в соответствии с настройками, может быть показан в зависимости от времени на статье, гео, интересов читателей. Перекрывает экран | C17: 680px x 340px | D17: Desktop | E17: 100000 | F17: 120000 | G17: 0.01 | H17: =F17*G17 -> 1200
C18: 680px x 340px | D18: Mobile | E18: 400000 | F18: 480000 | H18: =F18*G17 -> 4800

Sheet Подкасты
B1: В этом файле собрана информация о стоимости и показателях рекламных инструментов на сайте Т—Ж https://t-j.ru Цены приведены отдельно по каждому формату. Для уточнения финальной стоимости проекта и подготовки медиаплана необходимо заполнить бриф. Цены действуют с 01.03.2025 и указаны без НДС. | G1: Бриф по ссылке
A3: Прайс-лист на размещение рекламы в Т—Ж
A4: Реклама в подкастах
A5: Цены указаны за рекламную вставку длиной от 30 секунд до 1,5 минут. По запросу можно увеличить время интеграции, сделать совместный выпуск или сезон.
A6: Подкаст | B6: Описание | C6: ЦА: пол* | D6: ЦА: возраст* | E6: Целевая аудитория: интересы* | F6: Прогноз прослушиваний выпуска спустя месяц | G6: Цена, руб. без НДС | H6: Стоимость прослушивания, руб. без НДС | I6: Сроки подготовки (со дня заключения договора), раб. дней
A7: План Б | B7: Двое ведущих ищут путь к богатству | C7: 50% мужчин и 50% женщин | D7: 18-24 года — 18% 25-34 года — 43% 35-44 года — 22% | E7: лайфстайл, личные финансы, работа и карьера, ИТ, эмиграция, психология, бизнес и инвестиции | F7: 25 000 | G7: 200 000 | H7: 8 | I7: от 5
A8: Прием | B8: Разговорное шоу про медицину и здоровье | C8: 28% мужчин и 72% женщин | D8: 18-24 года — 20% 25-34 года — 52% 35-44 года — 13% | E8: медицина, ЗОЖ, красота, велнесс, фитнес, наука, семья и дети, ментальное здоровье | F8: 10 000 | G8: 80 000 | H8: 8
A9: Схема | B9: Тру-крайм про современное мошенничество | C9: 52% мужчин и 48% женщин | D9: 18-24 года — 19% 25-34 года — 47% 35-44 года — 18% | E9: тру-крайм, история, документалистика, финансовая безопасность, ИТ | F9: 12 000 | G9: 100 000 | H9: 8.3
A10: Ну как там с деньгами? | B10: Разбор бюджета и финансовых целей гостей | C10: 47% мужчин и 53% женщин | D10: 18-24 года — 28% 25-34 года — 50% 35-44 года — 11% | E10: финансовая грамотность, юмор, работа и карьера, инвестиции, психология, продуктивность, экономия | F10: 7 000 | G10: 60 000 | H10: 8.6
A11: В курсе рубля | B11: Эксперты про главное в экономике | C11: 58% мужчин и 42% женщин | D11: 18-24 года — 17% 25-34 года — 41% 35-44 года — 22% | E11: экономика, новости, инвестиции, бизнес и работа, политика | F11: 12 000 | G11: 150 000 | H11: 12.5
C13: *по данным Яндекс Музыки за период с 21.02.2024 по 21.02.2025
